bitfinex-derivatives/quotes_SOLF0:USTF0_20260211
["timestamp","ask_amount","ask_price","bid_price","bid_amount"]
[1770769910572,11.19280143,83.498,83.441,13.18446096]
[1770769910770,2.93919776,83.5,83.451,13.18446096]
[1770769911866,10.7864,83.485,83.451,13.18446096]
[1770769918066,10.7882,83.471,83.451,13.18446096]
[1770769918271,2.9401537,83.49,83.451,13.18446096]
[1770769918673,10.7879,83.473,83.451,13.18446096]
[1770769920480,10.7859,83.488,83.451,13.18446096]
[1770769920679,2.9401537,83.49,83.451,13.18446096]
[1770769920879,137.4803,83.533,83.451,13.18446096]
[1770769920880,2.9401537,83.5,83.451,13.18446096]
[1770769921177,10.7848,83.497,83.451,13.18446096]
[1770769924378,10.7836,83.506,83.454,7.81753091]
[1770769925677,10.7847,83.498,83.454,7.81753091]
[1770769925878,11.19280143,83.521,83.454,7.81753091]
[1770769926080,36.42831791,83.533,83.454,7.81753091]
[1770769926081,2.9401537,83.51,83.454,7.81753091]
[1770769926684,10.7835,83.507,83.458,7.82329816]
[1770769926982,2.9401537,83.51,83.458,7.82329816]
[1770769927192,2.9401537,83.5,83.458,7.82329816]
[1770769927681,10.7851,83.495,83.458,7.82329816]
[1770769931686,10.7841,83.502,83.458,7.82329816]
[1770769931881,10.7841,83.502,83.454,10.7902]
[1770769931882,2.9401537,83.52,83.461,7.83839455]
[1770769932074,2.9401537,83.51,83.461,7.83839455]
[1770769932585,10.7839,83.504,83.461,7.83839455]
[1770769938380,12.2,83.509,83.461,7.83839455]
[1770769938381,10.7847,83.498,83.461,7.83839455]
[1770769939085,2.9401537,83.5,83.461,7.83839455]
[1770769940688,10.7845,83.499,83.461,7.83839455]
[1770769942887,10.7836,83.506,83.462,10.7892]
[1770769943088,10.7836,83.506,83.463,7.93336294]
[1770769944584,10.7843,83.501,83.463,7.93336294]
[1770769948089,12.2,83.509,83.463,7.93336294]
[1770769948393,12.2,83.509,83.469,7.93236177]
[1770769949392,2.93924102,83.51,83.469,7.93236177]
[1770769949590,10.7842,83.501,83.469,7.93236177]
[1770769955599,10.7834,83.508,83.469,7.93236177]
[1770769956689,10.7841,83.502,83.469,7.93236177]
[1770769961399,10.7849,83.496,83.469,7.93236177]
[1770769966605,17.30923055,83.51,83.459,7.95576401]
[1770769967805,10.785,83.495,83.459,7.95576401]
[1770769968203,10.785,83.495,83.461,7.95549486]
[1770769976413,14.37,83.51,83.461,7.95549486]
[1770769976615,17.30923055,83.51,83.461,7.95549486]
[1770769977712,10.785,83.495,83.461,7.95549486]
[1770769980820,10.7842,83.501,83.461,7.95549486]
[1770769982519,10.785,83.496,83.461,7.95549486]
[1770769993928,10.7855,83.491,83.452,18.75019234]
[1770769994322,10.7855,83.491,83.453,7.95979234]
[1770769994730,10.7863,83.485,83.453,7.95979234]
[1770769996331,21.5675,83.505,83.441,7.96126767]
[1770769996524,2.93923055,83.47,83.429,7.96126767]
[1770769997326,2.93923055,83.46,83.413,7.96112753]
[1770769997529,95.6,83.488,83.413,7.96112753]
[1770769997530,2.93923055,83.45,83.413,7.96112753]
[1770769999132,2.93923055,83.44,83.403,7.9783275]
[1770770000140,10.7913,83.446,83.403,7.9783275]
[1770770000633,10.7928,83.435,83.403,7.9783275]
[1770770000829,14.86801791,83.493,83.348,21.608]
[1770770000830,2.93923055,83.43,83.392,7.97840104]
[1770770001625,10.7941,83.425,83.392,7.97840104]
[1770770001821,21.5778,83.465,83.356,61.72310845]
[1770770001822,2.93923055,83.42,83.374,7.97832015]
[1770770002433,21.5796,83.458,83.391,7.97832015]
[1770770002434,2.93923055,83.44,83.391,7.97832015]
[1770770003633,10.7927,83.435,83.391,7.97832015]
[1770770004734,10.7927,83.435,83.392,7.98265596]
[1770770005138,10.7915,83.445,83.4,2.93923055]
[1770770005345,10.7915,83.445,83.401,7.975642]
[1770770006345,2.93923055,83.44,83.401,7.975642]
[1770770007838,10.7923,83.438,83.401,7.975642]
[1770770009937,10.7923,83.438,83.379,138.36]
[1770770009938,2.93923055,83.43,83.384,7.96003631]
[1770770010544,2.93923055,83.44,83.384,7.96003631]
[1770770010934,2.94444217,83.44,83.384,7.96003631]
[1770770011840,10.7939,83.427,83.384,7.96003631]
[1770770012940,14.37,83.426,83.384,7.96003631]
[1770770013246,14.37,83.426,83.38,2.94444217]
[1770770013247,14.37,83.426,83.391,8.02791045]
[1770770015751,7.50168753,83.426,83.401,8.01347466]
[1770770017150,18.29558753,83.426,83.389,8.01254386]
[1770770017348,7.50168753,83.426,83.389,8.01254386]
[1770770018752,7.50168753,83.426,83.378,8.01254386]
[1770770018950,2.94444217,83.42,83.378,8.01254386]
[1770770019651,10.7951,83.417,83.378,8.01254386]
[1770770021046,2.94444217,83.41,83.378,8.01254386]
[1770770021554,10.7951,83.417,83.378,8.01254386]
[1770770022054,10.7951,83.417,83.373,458.37476222]
[1770770023551,10.7965,83.406,83.373,458.37476222]
[1770770024150,10.7965,83.406,83.367,7.99776242]
[1770770024854,10.7974,83.399,83.367,7.99776242]
[1770770025444,2.94444217,83.41,83.367,7.99776242]
[1770770026856,2.94444217,83.4,83.353,8.02166282]
[1770770027447,10.7994,83.384,83.353,8.02166282]
[1770770029249,2.94444217,83.4,83.355,8.03844574]
[1770770029455,2.94444217,83.41,83.361,8.03844574]
[1770770030558,10.7981,83.394,83.361,8.03844574]
[1770770031054,2.94444217,83.4,83.361,8.03844574]
[1770770031253,2.94444217,83.41,83.361,8.03844574]
[1770770032063,7.50168753,83.426,83.371,8.01679475]
[1770770032365,7.50168753,83.426,83.381,8.01679475]
[1770770032565,10.796,83.41,83.381,8.01679475]
[1770770032760,2.94444217,83.42,83.381,8.01679475]
[1770770033059,2.94444217,83.42,83.364,8.0318731]
[1770770033267,2.94444217,83.41,83.364,8.0318731]
[1770770033863,10.7968,83.404,83.365,8.0318731]
[1770770035268,2.94444217,83.41,83.365,8.0318731]
[1770770035269,10.7981,83.394,83.365,8.0318731]
[1770770035766,10.7981,83.394,83.354,10.8031]
[1770770036465,10.7981,83.394,83.355,8.0395767]
[1770770037070,10.7988,83.389,83.355,8.0395767]
[1770770038368,120.98,83.425,83.361,8.06849716]
[1770770038369,2.94444217,83.41,83.361,8.06849716]
[1770770039775,10.797,83.402,83.369,8.03907537]
[1770770040270,2.94444217,83.42,83.369,8.03907537]
[1770770040479,10.7977,83.397,83.369,8.03907537]
[1770770040771,2.94444217,83.41,83.369,8.03907537]
[1770770041978,10.7989,83.388,83.358,8.0309279]
[1770770043578,10.798,83.394,83.358,8.0309279]
[1770770043780,2.94444217,83.4,83.358,8.0309279]
[1770770044677,10.7989,83.388,83.358,8.0309279]
[1770770047083,10.7979,83.395,83.358,8.0309279]
[1770770049889,2.94444217,83.4,83.358,8.0309279]
[1770770050284,10.7979,83.396,83.358,8.0309279]
[1770770053292,10.7979,83.396,83.324,14.72310845]
[1770770053293,7.5,83.405,83.37,2.94444217]
[1770770053495,7.5,83.405,83.371,8.03535593]
[1770770053992,7.5,83.405,83.373,8.03535593]
[1770770055291,7.5,83.405,83.37,2.94444217]
[1770770055292,7.5,83.405,83.375,7.99784295]
[1770770056490,2.94444217,83.43,83.381,7.99784295]
[1770770057798,10.7947,83.42,83.381,7.99784295]
[1770770062301,10.7947,83.42,83.378,10.8001]
[1770770062602,2.94444217,83.43,83.378,10.8001]
[1770770062603,10.7957,83.412,83.379,4.27831308]
[1770770063202,10.7957,83.412,83.356,47.0]
[1770770063203,10.7939,83.426,83.391,4.28541963]
[1770770064599,11.98,83.509,83.411,4.28542485]
[1770770064600,2.94444217,83.46,83.411,4.28542485]
[1770770065402,10.7905,83.453,83.411,4.28542485]
[1770770066396,2.94444217,83.47,83.415,4.29120568]
[1770770067206,2.94444217,83.47,83.421,4.24382439]
[1770770067808,10.7899,83.457,83.421,4.24382439]
[1770770068012,2.94444217,83.47,83.421,4.24382439]
[1770770069711,10.7885,83.468,83.421,4.24382439]
[1770770072013,10.79,83.456,83.421,4.24382439]
[1770770073715,10.79,83.456,83.409,4.27827922]
[1770770074318,10.79,83.456,83.413,4.27827922]
[1770770074812,2.94254103,83.47,83.421,4.27827922]
[1770770074813,10.7887,83.467,83.421,4.27827922]
[1770770075918,10.79,83.457,83.421,4.27827922]
[1770770089515,21.5686,83.501,83.423,4.26723634]
[1770770089516,10.7889,83.465,83.423,4.26723634]
[1770770090731,10.7889,83.465,83.426,4.26715045]
[1770770091525,10.7897,83.459,83.426,4.26715045]
[1770770093924,10.7888,83.466,83.426,4.26715045]
[1770770094321,10.7888,83.466,83.429,4.25856193]
[1770770094826,10.7888,83.466,83.431,4.25856193]
[1770770095230,10.7874,83.477,83.431,4.25856193]
[1770770096332,11.16072284,83.514,83.391,47.0]
[1770770096333,10.7864,83.484,83.442,4.24916619]
[1770770097725,10.7864,83.484,83.446,4.23523202]
[1770770098331,10.7849,83.496,83.456,4.23523202]
[1770770098928,13.72824103,83.49,83.447,10.7911]
[1770770099136,2.94254103,83.49,83.444,4.23523202]
[1770770099440,2.94067386,83.49,83.444,4.23523202]
[1770770100834,10.7862,83.486,83.444,4.23523202]
[1770770102125,2.94067386,83.47,83.432,4.2539714]
[1770770102330,2.94067386,83.47,83.386,21.98352427]
[1770770102331,2.94067386,83.47,83.421,4.2539714]
[1770770103536,10.7874,83.477,83.433,4.25676284]
[1770770103936,2.94067386,83.48,83.443,15.04846284]
[1770770104130,10.7861,83.487,83.444,4.25676284]
[1770770104735,10.7849,83.496,83.452,4.25676284]
[1770770105830,10.7849,83.496,83.456,4.24957633]
[1770770106742,10.7857,83.49,83.456,4.24957633]
[1770770112240,10.7857,83.49,83.44,2.94067386]
[1770770112241,10.7867,83.482,83.444,4.20523677]
[1770770114344,10.7867,83.482,83.43,2.94067386]
[1770770114345,10.7867,83.482,83.445,14.99634444]
[1770770114740,10.7867,83.482,83.448,4.20504444]
[1770770114942,21.564,83.518,83.427,47.0]
[1770770114943,10.7854,83.492,83.451,4.20504444]
[1770770116751,10.7854,83.492,83.454,4.2178396]
[1770770118450,10.7861,83.487,83.447,10.7911]
[1770770118840,2.94067386,83.49,83.443,4.18750753]
[1770770119850,10.7869,83.48,83.443,4.18750753]
[1770770121753,10.7869,83.48,83.445,4.19334866]
[1770770126658,10.7861,83.486,83.445,4.19334866]
[1770770127758,10.7849,83.496,83.453,10.7903]
[1770770129757,10.7849,83.496,83.454,4.19076184]
[1770770130169,2.94067386,83.5,83.458,4.19076184]
[1770770130661,2.94067386,83.51,83.458,4.19076184]
[1770770131061,10.7838,83.504,83.466,10.7886]
[1770770131562,2.94067386,83.5,83.466,10.7886]
[1770770132663,2.94067386,83.5,83.459,10.7895]
[1770770132969,2.939757,83.5,83.459,10.7895]
[1770770133170,2.939757,83.5,83.458,4.19076184]
[1770770134763,2.939757,83.5,83.464,10.7888]
[1770770136570,10.7838,83.504,83.464,10.7888]
[1770770136772,10.7838,83.504,83.465,4.17449951]
[1770770139665,2.939757,83.51,83.448,14.66408394]
[1770770139666,11.16410102,83.536,83.471,4.15760187]
[1770770139865,2.939757,83.54,83.491,4.15760187]
[1770770140572,11.16410102,83.581,83.52,2.939757]
[1770770140873,2.939757,83.57,83.521,4.15760187]
[1770770141174,147.06,83.598,83.487,110.3]
[1770770141175,0.02211085,83.594,83.531,4.13013841]
[1770770141467,0.02211085,83.579,83.5,4.13013841]
[1770770141673,167.4986,83.629,83.521,4.13013841]
[1770770141674,10.7755,83.569,83.521,4.13013841]
[1770770141967,2.0828408,83.62,83.501,95.6]
[1770770141968,0.02211085,83.589,83.541,4.13013841]
[1770770142167,0.02211085,83.589,83.547,4.13013841]
[1770770142373,0.02211085,83.599,83.547,4.13013841]
[1770770142871,10.7742,83.579,83.534,4.13013841]
[1770770143062,0.02211085,83.589,83.534,4.13013841]
[1770770143267,2.939757,83.6,83.551,4.20965135]
[1770770143470,13.709957,83.61,83.561,4.20965135]
[1770770144065,10.7713,83.601,83.561,4.20965135]
[1770770144265,10.7713,83.601,83.463,167.8303]
[1770770144266,2.939757,83.59,83.544,4.20965135]
[1770770145065,2.939757,83.6,83.551,4.12256828]
[1770770145562,0.0372511,83.602,83.55,2.939757]
[1770770145563,0.0372511,83.602,83.554,4.12256828]
[1770770145768,0.0372511,83.602,83.561,4.12256828]
[1770770146761,2.939757,83.6,83.561,4.12256828]
[1770770147167,0.0372511,83.602,83.561,4.12256828]
[1770770148370,10.7696,83.615,83.571,4.11461067]
[1770770148567,6.877e-05,83.603,83.581,4.11461067]
[1770770148761,11.16410102,83.681,83.613,10.7697]
[1770770148762,0.05316633,83.657,83.613,10.7697]
[1770770148965,0.05316633,83.657,83.604,4.11461067]
[1770770148966,0.05316633,83.679,83.631,4.11461067]
[1770770149362,5.02020083,83.71,83.653,4.14091192]
[1770770149562,2.939757,83.71,83.661,4.14091192]
[1770770149769,307.11016426,83.743,83.631,4.14091192]
[1770770149770,2.939757,83.68,83.631,4.14091192]
[1770770149967,10.7614,83.678,83.631,4.14091192]
[1770770150275,2.939757,83.69,83.631,4.14091192]
[1770770150660,2.939757,83.69,83.641,4.14136208]
[1770770151067,10.7602,83.688,83.641,4.14136208]
[1770770151267,2.07989672,83.73,83.641,4.14136208]
[1770770151268,2.939757,83.7,83.641,4.14136208]
[1770770151766,0.05483274,83.7,83.641,4.14136208]
[1770770151970,2.99458974,83.7,83.641,4.14136208]
[1770770152374,2.939757,83.69,83.641,4.14136208]
[1770770152578,2.939757,83.66,83.62,4.10751315]
[1770770154074,0.05483274,83.669,83.62,4.10751315]
[1770770154273,474.38076426,83.743,83.621,4.05909925]
[1770770154274,2.939757,83.67,83.621,4.05909925]
[1770770154679,0.15166054,83.684,83.621,4.05909925]
[1770770154680,2.939757,83.68,83.621,4.05909925]
[1770770154878,0.15166054,83.684,83.621,4.05909925]
[1770770156976,10.761,83.681,83.621,4.05909925]
[1770770157275,0.06029879,83.68,83.621,4.05909925]
[1770770158579,0.06029879,83.695,83.621,4.05909925]
[1770770159780,0.06016102,83.682,83.623,4.10484901]
[1770770160086,0.06016102,83.679,83.623,4.10484901]
[1770770160688,10.7638,83.66,83.623,4.10484901]
[1770770160887,0.06016102,83.659,83.591,4.10484901]
[1770770161384,7.84174812,83.68,83.593,4.09265537]
[1770770161586,0.08454831,83.679,83.593,4.09265537]
[1770770162687,10.7633,83.663,83.608,10.7703]
[1770770162989,10.7633,83.663,83.609,4.09265537]
[1770770163384,10.7618,83.675,83.618,4.08644587]
[1770770163784,0.08454831,83.679,83.618,4.08644587]
[1770770164184,10.7628,83.667,83.618,4.08644587]
[1770770165691,10.7642,83.657,83.618,4.08644587]
[1770770166079,0.09833451,83.656,83.605,4.08576227]
[1770770166284,10.7643,83.655,83.605,4.08576227]
[1770770168289,10.7643,83.655,83.59,7.84174812]
[1770770168290,10.7643,83.655,83.607,4.08272561]
[1770770169780,10.7643,83.655,83.609,4.08421586]
[1770770170592,10.7629,83.667,83.62,4.08421586]
[1770770176295,10.7637,83.66,83.62,4.08421586]
[1770770180297,10.7649,83.651,83.62,4.08421586]
[1770770180498,10.7649,83.651,83.606,4.18034355]
[1770770182594,10.7664,83.64,83.606,4.18034355]
[1770770183005,2.92811792,83.65,83.591,4.15442483]
[1770770183205,10.7677,83.629,83.591,4.15442483]
[1770770183803,2.92811792,83.64,83.591,4.15442483]
[1770770184602,10.769,83.619,83.591,4.15442483]
[1770770184800,10.769,83.619,83.565,47.0]
[1770770184801,3.86956423,83.628,83.565,47.0]
[1770770184999,3.86956423,83.628,83.57,2.92811792]
[1770770185205,10.7706,83.606,83.57,2.92811792]
[1770770186905,10.7706,83.606,83.571,3.77775538]
[1770770187401,10.7697,83.614,83.571,3.77775538]
[1770770191307,10.7705,83.607,83.571,3.77775538]
[1770770192015,10.7696,83.614,83.571,3.77775538]
[1770770197918,10.7696,83.614,83.575,3.77775538]
[1770770198221,3.65386144,83.632,83.581,3.77775538]
[1770770199727,10.7679,83.628,83.584,14.55115538]
[1770770200128,10.7679,83.628,83.585,3.77775538]
[1770770201030,10.7685,83.623,83.585,3.77775538]
[1770770203326,10.7685,83.623,83.587,3.77775538]
[1770770205333,10.7673,83.632,83.591,3.77775538]
[1770770205523,10.7673,83.632,83.56,21.553]
[1770770205524,3.20267715,83.639,83.601,3.77775538]
[1770770205923,3.20267715,83.659,83.605,3.77775538]
[1770770206122,3.20267715,83.659,83.611,3.77775538]
[1770770206528,3.20267715,83.673,83.631,3.77775538]
[1770770207832,3.20267715,83.673,83.634,14.54475538]
[1770770208224,3.23124149,83.687,83.64,2.93115197]
[1770770208626,10.7611,83.681,83.64,2.93115197]
[1770770209437,14.01796973,83.681,83.64,2.93115197]
[1770770209828,14.01796973,83.681,83.634,3.77775538]
[1770770209829,3.25686973,83.696,83.65,2.93115197]
[1770770210028,3.25686973,83.696,83.65,6.83107611]
[1770770210228,3.25686973,83.696,83.651,3.89992414]
[1770770211834,3.25686973,83.696,83.653,3.89992414]
[1770770212941,3.27071648,83.679,83.63,2.93115197]
[1770770213341,3.26391886,83.678,83.63,6.83107611]
[1770770213731,3.26391886,83.678,83.641,3.89992414]
[1770770213939,3.26391886,83.699,83.65,2.93115197]
[1770770214336,3.26391886,83.699,83.65,6.83107611]
[1770770214539,3.26391886,83.696,83.65,6.83107611]
[1770770214938,3.26391886,83.693,83.65,6.83107611]
[1770770215138,3.26391886,83.693,83.65,3.89992414]
[1770770216644,3.26391886,83.693,83.651,10.7648]
[1770770218542,3.28868924,83.704,83.66,2.93115197]
[1770770218742,3.28868924,83.704,83.66,6.83107611]
[1770770219753,10.7582,83.703,83.663,10.7632]
[1770770220051,14.06487466,83.703,83.663,10.7632]
[1770770220350,3.30667466,83.699,83.66,3.89992414]
[1770770220654,3.30667466,83.699,83.651,3.89992414]
[1770770220853,3.30667466,83.699,83.65,2.93115197]
[1770770220854,14.06537466,83.699,83.654,3.89992414]
[1770770221239,143.52,83.736,83.654,3.89992414]
[1770770221240,3.34342091,83.698,83.654,3.89992414]
[1770770221552,3.34342091,83.698,83.661,3.89992414]
[1770770222446,10.7596,83.692,83.661,3.89992414]
[1770770223153,3.34342091,83.698,83.661,3.89992414]
[1770770223647,10.758,83.705,83.662,3.89992414]
[1770770224851,10.758,83.705,83.664,3.89992414]
[1770770225755,3.84749082,83.71,83.671,3.89992414]
[1770770229656,3.84749082,83.71,83.672,10.7621]
[1770770230157,3.82117801,83.708,83.667,3.89992414]
[1770770230351,3.82117801,83.708,83.655,3.89992414]
[1770770231150,3.80213646,83.693,83.655,3.89992414]
[1770770231850,3.80213646,83.693,83.653,10.7645]
[1770770232750,10.7597,83.691,83.653,10.7645]
[1770770232946,14.56183646,83.691,83.653,10.7645]
[1770770233954,14.56183646,83.691,83.65,2.92586668]
[1770770234554,10.7602,83.688,83.65,2.92586668]
[1770770234754,10.7602,83.688,83.649,10.7651]
[1770770235350,10.7602,83.688,83.65,2.92586668]
[1770770236358,3.79974605,83.68,83.64,2.92586668]
[1770770236857,3.79974605,83.68,83.634,3.89992414]
[1770770237159,3.79974605,83.671,83.629,10.7676]
[1770770237752,14.56294957,83.667,83.629,10.7676]
[1770770238154,14.56294957,83.667,83.626,10.768]
[1770770238356,14.56294957,83.667,83.63,2.92586668]
[1770770238748,3.80004957,83.664,83.622,3.89992414]
[1770770238952,3.80004957,83.659,83.613,3.89992414]
[1770770239556,3.80004957,83.659,83.6,2.92586668]
[1770770239557,3.80004957,83.659,83.6,6.82579082]
[1770770239764,14.59086651,83.645,83.6,6.82579082]
[1770770239962,2.92586668,83.66,83.6,6.82579082]
[1770770239963,3.82516651,83.644,83.6,6.82579082]
[1770770240458,3.82519753,83.639,83.591,3.90510924]
[1770770241862,3.76220846,83.635,83.591,3.90510924]
[1770770245268,3.62777253,83.633,83.584,10.7734]
[1770770245466,2.92586668,83.63,83.584,10.7734]
[1770770245667,3.62777253,83.63,83.585,3.95734367]
[1770770247265,3.62777253,83.63,83.59,2.92586668]
[1770770247471,10.7671,83.634,83.591,3.95734367]
[1770770247671,3.63516018,83.641,83.591,3.95734367]
[1770770248469,10.7665,83.638,83.591,3.95734367]
[1770770250370,3.66049784,83.637,83.591,3.95734367]
[1770770250675,21.5219,83.682,83.593,3.95734367]
[1770770250676,3.66049784,83.645,83.593,3.95734367]
[1770770251664,2.92586668,83.64,83.593,3.95734367]
[1770770251869,6.59418664,83.64,83.595,3.95734367]
[1770770252064,3.66831996,83.639,83.595,3.95734367]
[1770770253768,3.66831996,83.639,83.596,10.7719]
[1770770255473,3.66831996,83.639,83.596,14.72924367]
[1770770257473,3.66831996,83.639,83.597,3.95734367]
[1770770262676,3.66831996,83.639,83.6,3.95734367]
[1770770264575,3.12442247,83.608,83.571,3.95734367]
[1770770264783,3.12442247,83.608,83.562,14.73354367]
[1770770265570,2.92977363,83.61,83.55,2.92977363]
[1770770265571,13.90873079,83.607,83.564,10.7761]
[1770770265770,13.90873079,83.607,83.564,14.73344367]
[1770770266479,3.13813079,83.607,83.567,3.95734367]
[1770770267973,3.13813079,83.607,83.556,3.95734367]
[1770770268169,3.03668112,83.599,83.556,3.95734367]
[1770770268575,3.03668112,83.597,83.556,14.73434367]
[1770770269582,3.01565106,83.594,83.556,3.95734367]
[1770770270086,3.01565106,83.605,83.556,3.95734367]
[1770770270681,10.7713,83.602,83.556,14.73434367]
[1770770270882,10.7713,83.602,83.557,4.06228511]
[1770770271676,13.86592135,83.602,83.557,4.06228511]
[1770770271983,10.7718,83.598,83.557,4.06228511]
[1770770273189,3.09462135,83.601,83.56,4.06228511]
[1770770274486,2.92977363,83.6,83.56,4.06228511]
[1770770274682,3.12142716,83.599,83.56,4.06228511]
[1770770276897,3.12142716,83.599,83.561,10.7764]
[1770770277789,3.12142716,83.599,83.562,4.06228511]
[1770770285397,3.00489466,83.597,83.562,4.06228511]
[1770770285792,3.00489466,83.595,83.555,10.7772]
[1770770286696,2.93254515,83.6,83.555,10.7772]
[1770770286697,3.00489466,83.592,83.555,10.7772]
[1770770288698,3.00489466,83.592,83.556,4.06228511]
[1770770289095,2.92815563,83.589,83.545,10.7785]
[1770770289297,2.92815563,83.579,83.545,10.7785]
[1770770289497,2.92815563,83.579,83.537,4.06228511]
[1770770289699,2.92815563,83.579,83.538,10.7794]
[1770770289894,2.92815563,83.579,83.538,14.84168511]
[1770770290902,2.92815563,83.579,83.54,10.7791]
[1770770292099,2.92815563,83.579,83.543,10.7787]
[1770770293899,2.93222089,83.576,83.535,10.7797]
[1770770294797,2.93254515,83.57,83.531,4.06228511]
[1770770295000,21.5402,83.611,83.518,4.06228511]
[1770770295001,2.93222089,83.559,83.518,4.06228511]
[1770770295703,2.93254515,83.56,83.518,4.06228511]
[1770770295704,2.93630033,83.557,83.518,4.06228511]
[1770770296596,2.93630033,83.549,83.506,4.06228511]
[1770770297302,3.00079257,83.546,83.506,4.06228511]
[1770770298403,13.78039257,83.537,83.506,4.06228511]
[1770770299196,10.7807,83.529,83.491,4.06228511]
[1770770299400,3.01106196,83.528,83.491,4.06228511]
[1770770300199,3.01106196,83.528,83.471,4.02934445]
[1770770300702,10.782,83.519,83.475,10.7875]
[1770770300903,10.782,83.519,83.47,459.94744451]
[1770770300904,3.01106196,83.528,83.476,4.02934445]
[1770770301804,10.781,83.526,83.479,4.02934445]
[1770770302305,13.85917854,83.526,83.479,4.02934445]
[1770770303004,3.07817854,83.525,83.481,4.02934445]
[1770770303807,3.07353263,83.518,83.481,4.02934445]
[1770770304204,2.93254515,83.51,83.47,461.02391825]
[1770770304404,2.93254515,83.51,83.471,4.00901889]
[1770770305205,10.7824,83.515,83.471,4.00901889]
[1770770306708,10.7824,83.515,83.473,4.00901889]
[1770770306910,3.07505945,83.514,83.473,4.00901889]
[1770770307697,3.07505945,83.514,83.475,14.79651889]
[1770770307901,3.07505945,83.514,83.476,4.00901889]
[1770770309613,10.783,83.511,83.476,4.00901889]
[1770770309913,3.12703211,83.509,83.476,4.00901889]
[1770770310911,3.12703211,83.509,83.464,10.7889]
[1770770310912,3.12703211,83.499,83.466,4.00901889]
[1770770313110,3.07656976,83.489,83.455,4.00901889]
[1770770314811,10.786,83.488,83.455,4.00901889]
[1770770315816,3.03935538,83.487,83.445,10.7914]
[1770770316007,3.03935538,83.487,83.446,4.00901889]
[1770770316407,10.7863,83.485,83.446,4.00901889]
[1770770316802,13.82565538,83.485,83.446,4.00901889]
[1770770317612,10.7867,83.482,83.446,4.00901889]
[1770770318615,3.03083079,83.484,83.446,4.00901889]
[1770770319821,3.03083079,83.484,83.447,14.80011889]
[1770770320314,3.03083079,83.484,83.448,4.00901889]
[1770770321318,3.0118979,83.479,83.437,4.00901889]
[1770770322017,10.7872,83.478,83.439,10.7922]
[1770770322219,3.0118979,83.477,83.43,2.94025471]
[1770770322514,3.0118979,83.469,83.429,4.00901889]
[1770770322714,3.0118979,83.467,83.429,4.00901889]
[1770770323712,2.98334836,83.463,83.429,4.00901889]
[1770770324322,2.98334836,83.463,83.423,10.7942]
[1770770325824,2.98334836,83.463,83.392,2.08546824]
[1770770325825,2.98334836,83.463,83.429,14.80251889]
[1770770327020,2.98334836,83.463,83.429,4.00901889]
[1770770329723,2.98334836,83.463,83.43,10.7932]
[1770770331222,2.98334836,83.463,83.429,4.00901889]
[1770770332917,2.98334836,83.463,83.423,10.7941]
[1770770333122,2.97837401,83.459,83.419,4.02394545]
[1770770334526,2.97068712,83.469,83.421,4.02394545]
[1770770335226,13.75230113,83.468,83.43,4.02394545]
[1770770335421,2.96380113,83.467,83.43,4.02394545]
[1770770335924,2.96380113,83.467,83.41,2.94025471]
[1770770336832,3.99832127,83.465,83.422,10.7943]
[1770770337234,3.99832127,83.459,83.415,10.7952]
[1770770337430,3.99832127,83.459,83.38,21.5995]
[1770770337431,2.94025471,83.45,83.4,2.94025471]
[1770770337634,6.93857598,83.45,83.4,2.94025471]
[1770770337826,3.99832127,83.449,83.401,4.02394545]
[1770770338223,3.99832127,83.448,83.407,4.02394545]
[1770770339527,10.7933,83.431,83.391,4.02394545]
[1770770340232,3.99832127,83.449,83.4,4.02394545]
[1770770340423,6.93857598,83.46,83.411,4.02394545]
[1770770340828,3.99832127,83.459,83.411,4.02394545]
[1770770341635,2.94025471,83.45,83.411,4.02394545]
[1770770341835,2.94025471,83.44,83.406,10.7965]
[1770770342035,6.93857598,83.44,83.406,10.7965]
[1770770342233,3.99832127,83.452,83.409,10.796]
[1770770342427,47.85,83.506,83.39,2.94025471]
[1770770342428,3.99832127,83.465,83.411,4.02394545]
[1770770343031,3.99832127,83.449,83.411,4.02394545]
[1770770343631,3.99832127,83.449,83.419,10.7947]
[1770770344027,2.94025471,83.46,83.419,14.81864545]
[1770770344228,2.94025471,83.46,83.42,4.02394545]
[1770770345728,2.94025471,83.46,83.422,10.7943]
[1770770345933,2.94025471,83.45,83.42,4.02394545]
[1770770347339,2.94025471,83.45,83.412,4.02394545]
[1770770348233,2.94025471,83.45,83.4,2.94025471]
[1770770348234,2.94025471,83.45,83.414,4.02394545]
[1770770348433,3.99832127,83.459,83.414,4.02394545]
[1770770349438,3.99832127,83.459,83.416,4.02394545]
[1770770349439,10.7899,83.458,83.416,4.02394545]
[1770770349740,2.94025471,83.46,83.416,4.02394545]